bitfinex-derivatives/quotes_BTCF0:USTF0_20251228
["timestamp","ask_amount","ask_price","bid_price","bid_amount"]
[1766939363759,0.03540622,87835.0,87822.0,0.05704]
[1766939363959,0.02401322,87834.0,87822.0,0.08704]
[1766939364159,0.02401322,87833.0,87822.0,0.08704]
[1766939364459,0.011393,87835.0,87822.0,0.08704]
[1766939364651,0.02401271,87834.0,87822.0,0.08704]
[1766939364851,0.02401271,87833.0,87822.0,0.08704]
[1766939365052,0.011393,87835.0,87822.0,0.08704]
[1766939365252,0.02401264,87834.0,87822.0,0.08704]
[1766939365459,0.02401264,87833.0,87822.0,0.08704]
[1766939365660,0.011393,87835.0,87822.0,0.08704]
[1766939365860,0.02401232,87834.0,87822.0,0.08704]
[1766939366053,0.02401232,87833.0,87822.0,0.08704]
[1766939366254,0.011393,87835.0,87822.0,0.08704]
[1766939366455,0.02401193,87834.0,87822.0,0.08704]
[1766939366757,0.02401193,87833.0,87822.0,0.08704]
[1766939366957,0.011393,87835.0,87822.0,0.08704]
[1766939367164,0.0113935,87831.0,87822.0,0.05704]
[1766939367760,0.0113931,87834.0,87822.0,0.05704]
[1766939367959,0.02401033,87833.0,87822.0,0.05704]
[1766939368163,0.02401033,87832.0,87822.0,0.05704]
[1766939368363,0.0113931,87834.0,87822.0,0.05704]
[1766939368664,0.02400931,87833.0,87822.0,0.05704]
[1766939368865,0.02400931,87832.0,87822.0,0.05704]
[1766939369160,0.09684,87841.0,87819.0,0.00017073]
[1766939369361,0.02400797,87840.0,87819.0,0.00017073]
[1766939369561,0.02400797,87839.0,87819.0,0.00017073]
[1766939369751,0.02400797,87838.0,87819.0,0.00017073]
[1766939369956,0.02400797,87837.0,87819.0,0.00017073]
[1766939370155,0.0113938,87829.0,87819.0,0.00017073]
[1766939370654,0.02400609,87828.0,87819.0,0.00017073]
[1766939370861,0.02400609,87828.0,87806.0,0.06138618]
[1766939370862,0.0113943,87825.0,87807.0,0.0113965]
[1766939371063,0.0113943,87825.0,87808.0,0.15388]
[1766939371261,0.0113943,87825.0,87808.0,0.18388]
[1766939372073,0.01156503,87825.0,87809.0,0.0684363]
[1766939372257,0.00017073,87825.0,87811.0,0.011396]
[1766939372463,0.00017073,87825.0,87811.0,0.03]
[1766939373257,0.00017073,87825.0,87813.0,0.0113957]
[1766939373556,0.00017073,87825.0,87813.0,0.0413957]
[1766939384574,0.00017073,87825.0,87813.0,0.0984357]
[1766939386570,0.00017073,87825.0,87813.0,0.0413957]
[1766939386771,0.00017073,87825.0,87813.0,0.0984357]
[1766939388079,0.00017073,87825.0,87813.0,0.08704]
[1766939389480,0.00017073,87825.0,87814.0,0.0113956]
[1766939389781,7.3e-07,87825.0,87814.0,0.0413956]
[1766939395081,7.3e-07,87825.0,87815.0,0.05704]
[1766939396180,7.3e-07,87825.0,87815.0,0.0684354]
[1766939396382,0.06102425,87840.0,87815.0,0.05704]
[1766939396569,0.0113928,87836.0,87819.0,0.0113949]
[1766939396774,0.09684,87841.0,87816.0,0.0113953]
[1766939396775,0.02406023,87835.0,87816.0,0.0113953]
[1766939396974,0.0113934,87832.0,87816.0,0.03]
[1766939397175,0.02406023,87831.0,87816.0,0.03]
[1766939397470,0.0113936,87830.0,87816.0,0.03]
[1766939397676,0.02406023,87829.0,87816.0,0.03]
[1766939397877,0.02406023,87829.0,87817.0,0.05704]
[1766939398080,0.02406023,87829.0,87817.0,0.08704]
[1766939399779,0.00845383,87830.0,87817.0,0.08704]
[1766939399975,0.09684,87841.0,87817.0,0.08704]
[1766939400374,0.15786425,87841.0,87817.0,0.08704]
[1766939401086,0.00017073,87838.0,87817.0,0.08704]
[1766939401378,0.06102425,87835.0,87817.0,0.08704]
[1766939401584,0.06102425,87836.0,87817.0,0.08704]
[1766939401787,0.0113935,87831.0,87817.0,0.08704]
[1766939402184,0.04002425,87836.0,87817.0,0.08704]
[1766939402387,0.08165665,87847.0,87824.0,0.0113942]
[1766939402586,0.09684,87846.0,87825.0,0.05704]
[1766939402780,0.09684,87847.0,87825.0,0.05704]
[1766939403583,0.00017073,87845.0,87827.0,0.00017073]
[1766939403983,0.0113925,87839.0,87827.0,0.00017073]
[1766939406384,0.00017073,87845.0,87827.0,0.00017073]
[1766939406586,0.0113928,87837.0,87827.0,0.00017073]
[1766939407276,0.011393,87835.0,87827.0,0.00017073]
[1766939408679,0.011393,87835.0,87827.0,0.03017073]
[1766939409781,0.011393,87835.0,87827.0,0.08721073]
[1766939410086,0.0113926,87838.0,87827.0,0.08721073]
[1766939410690,0.0113926,87838.0,87827.0,0.05721073]
[1766939413794,0.0113923,87840.0,87827.0,0.05721073]
[1766939418995,0.0113926,87838.0,87827.0,0.05721073]
[1766939424193,0.0113928,87836.0,87827.0,0.00017073]
[1766939424396,0.0113928,87836.0,87828.0,0.05704]
[1766939425200,0.0113931,87834.0,87828.0,0.05704]
[1766939426609,0.0113927,87837.0,87828.0,0.05623877]
[1766939426797,0.0113922,87841.0,87828.0,0.05623877]
[1766939427809,0.0113918,87844.0,87828.0,0.05623877]
[1766939429809,0.00017073,87845.0,87828.0,0.05623877]
[1766939431202,0.00017073,87845.0,87829.0,0.0113937]
[1766939432707,0.00017073,87845.0,87831.0,0.0113933]
[1766939433916,0.00017073,87845.0,87828.0,0.06763257]
[1766939437327,0.06131539,87848.0,87836.0,0.0113927]
[1766939437527,0.15388,87853.0,87836.0,0.0413927]
[1766939438226,0.1652706,87853.0,87836.0,0.0413927]
[1766939438426,0.16538442,87853.0,87836.0,0.0413927]
[1766939438622,0.01150442,87853.0,87836.0,0.0113927]
[1766939439524,0.00011382,87853.0,87838.0,0.0113924]
[1766939440117,0.09684,87855.0,87840.0,0.0113921]
[1766939440923,0.09684,87855.0,87840.0,0.0413921]
[1766939441626,0.09684,87855.0,87842.0,0.0113919]
[1766939441822,0.0684298,87859.0,87842.0,0.0113919]
[1766939444127,0.05704,87859.0,87845.0,0.0113916]
[1766939445228,0.01139,87858.0,87842.0,0.011392]
[1766939446334,0.01139,87858.0,87839.0,0.0113923]
[1766939447535,0.01139,87858.0,87841.0,0.011392]
[1766939448735,0.05704,87859.0,87835.0,0.15388]
[1766939448930,0.0113896,87861.0,87835.0,0.18388]
[1766939449129,0.0113896,87861.0,87836.0,0.11383104]
[1766939449333,0.0113896,87861.0,87836.0,0.14383104]
[1766939449638,0.0113896,87861.0,87841.0,0.011392]
[1766939449840,0.0113896,87861.0,87836.0,0.11383104]
[1766939450033,0.00227628,87863.0,87836.0,0.03]
[1766939450238,0.00227628,87863.0,87843.0,0.0113917]
[1766939450540,0.00227628,87863.0,87844.0,0.05704]
[1766939450739,0.0113896,87861.0,87845.0,0.10840223]
[1766939451733,0.00227628,87863.0,87845.0,0.10840223]
[1766939452430,0.00227628,87863.0,87847.0,0.0113912]
[1766939452630,0.00227628,87863.0,87847.0,0.0413912]
[1766939452831,0.0113885,87869.0,87849.0,0.011391]
[1766939453032,0.09684,87870.0,87845.0,0.11010675]
[1766939453327,0.0113892,87864.0,87846.0,0.11382521]
[1766939453535,0.0113892,87864.0,87846.0,0.14382521]
[1766939454340,0.05704,87871.0,87846.0,0.14382521]
[1766939454643,0.05704,87871.0,87847.0,0.15388]
[1766939454644,0.0113898,87860.0,87847.0,0.15388]
[1766939454845,0.0113898,87860.0,87847.0,0.18388]
[1766939456641,0.05704,87871.0,87847.0,0.18388]
[1766939458240,0.0113884,87870.0,87847.0,0.03]
[1766939458447,0.0113884,87870.0,87848.0,0.05704]
[1766939458743,0.05704,87871.0,87848.0,0.05704]
[1766939458744,0.0113898,87860.0,87848.0,0.05704]
[1766939459337,0.0113893,87863.0,87848.0,0.05704]
[1766939460241,0.05704,87871.0,87848.0,0.05704]
[1766939460544,0.0113885,87869.0,87848.0,0.05704]
[1766939461244,0.0113885,87869.0,87848.0,0.08704]
[1766939462245,0.0113898,87860.0,87848.0,0.08704]
[1766939462444,0.0113898,87860.0,87848.0,0.05704]
[1766939468446,0.0113893,87864.0,87848.0,0.05704]
[1766939469362,0.0113887,87868.0,87851.0,0.0113907]
[1766939469749,0.05704,87871.0,87851.0,0.0413907]
[1766939469952,0.011389,87866.0,87851.0,0.0113907]
[1766939470151,0.011389,87866.0,87848.0,0.0684312]
[1766939470548,0.0113879,87874.0,87848.0,0.08704]
[1766939471745,0.0113879,87874.0,87857.0,0.0113899]
[1766939471950,0.0113879,87874.0,87858.0,0.05704]
[1766939472453,0.0113882,87872.0,87858.0,0.05704]
[1766939473560,0.0113878,87875.0,87859.0,0.0113898]
[1766939473761,0.05704,87879.0,87863.0,0.0113892]
[1766939473956,0.05704,87879.0,87864.0,0.05704]
[1766939475361,0.0684273,87879.0,87864.0,0.05704]
[1766939478462,0.05704,87879.0,87865.0,0.011389]
[1766939479755,0.05704,87879.0,87864.0,0.05704]
[1766939479960,0.011387,87881.0,87864.0,0.05704]
[1766939481265,0.09684,87883.0,87864.0,0.05704]
[1766939481752,0.0113876,87877.0,87864.0,0.05704]
[1766939482158,0.09684,87883.0,87863.0,0.00017073]
[1766939482459,0.09684,87883.0,87864.0,0.057]
[1766939483170,0.0115576,87882.0,87863.0,3e-08]
[1766939483469,0.0001707,87882.0,87863.0,3e-08]
[1766939484168,0.0113885,87870.0,87863.0,3e-08]
[1766939485672,0.057,87877.0,87863.0,3e-08]
[1766939486469,0.0113891,87865.0,87863.0,3e-08]
[1766939486666,0.01139,87858.0,87851.0,0.1538]
[1766939487370,0.0113895,87862.0,87848.0,0.057]
[1766939487872,0.0113906,87853.0,87846.0,0.05717073]
[1766939488063,0.0113901,87857.0,87846.0,0.05717073]
[1766939489160,0.0113896,87861.0,87846.0,0.05717073]
[1766939490162,0.0113899,87858.0,87846.0,0.05717073]
[1766939490871,0.0113895,87862.0,87846.0,0.05717073]
[1766939491368,0.00017073,87864.0,87846.0,0.05717073]
[1766939491671,0.00017073,87864.0,87849.0,0.011391]
[1766939493464,0.01155993,87864.0,87846.0,0.05717073]
[1766939494769,0.0113895,87861.0,87846.0,0.05717073]
[1766939495367,0.00017073,87864.0,87846.0,0.00017073]
[1766939495572,0.00017073,87864.0,87847.0,0.15388]
[1766939495772,0.01139,87858.0,87847.0,0.15388]
[1766939502874,0.0113896,87861.0,87846.0,0.00017073]
[1766939503176,0.0113896,87861.0,87848.0,0.05704]
[1766939505975,0.0113897,87860.0,87848.0,0.05704]
[1766939506165,0.00017073,87864.0,87847.0,0.05704]
[1766939507071,0.0113903,87856.0,87847.0,0.05704]
[1766939508579,0.0113898,87859.0,87847.0,0.05704]
[1766939509480,0.0113894,87862.0,87847.0,0.05704]
[1766939509781,0.0113896,87861.0,87847.0,0.05704]
[1766939510174,0.0113899,87859.0,87847.0,0.05704]
[1766939512280,0.00017073,87864.0,87847.0,0.08704]
[1766939512879,0.00017073,87864.0,87847.0,0.05704]
[1766939513280,0.0113898,87860.0,87847.0,0.05704]
[1766939513681,0.02419456,87859.0,87847.0,0.05704]
[1766939513882,0.02419456,87858.0,87847.0,0.05704]
[1766939514081,0.02419456,87857.0,87847.0,0.05704]
[1766939514382,0.0113898,87860.0,87847.0,0.05704]
[1766939514584,0.0241984,87859.0,87847.0,0.05704]
[1766939514770,0.0241984,87858.0,87847.0,0.05704]
[1766939514974,0.0241984,87857.0,87847.0,0.05704]
[1766939515174,0.0241984,87856.0,87847.0,0.05704]
[1766939515375,0.0113898,87860.0,87847.0,0.05704]
[1766939515585,0.02420341,87859.0,87847.0,0.05704]
[1766939515779,0.0113898,87860.0,87847.0,0.05704]
[1766939515780,0.02420341,87858.0,87847.0,0.05704]
[1766939516082,0.02420341,87857.0,87847.0,0.05704]
[1766939516281,0.02420341,87856.0,87847.0,0.05704]
[1766939516485,0.00017073,87864.0,87847.0,0.05704]
[1766939516677,0.02421098,87863.0,87847.0,0.05704]
[1766939516983,0.02421098,87862.0,87847.0,0.05704]
[1766939517285,0.02421098,87861.0,87847.0,0.05704]
[1766939517582,0.01139,87858.0,87847.0,0.05704]
[1766939517785,0.02421098,87857.0,87847.0,0.05704]
[1766939521894,0.02421098,87856.0,87847.0,0.05704]
[1766939522189,0.02421098,87855.0,87847.0,0.05704]
[1766939522391,0.0113896,87861.0,87847.0,0.05704]
[1766939522593,0.02421735,87860.0,87847.0,0.05704]
[1766939522783,0.02421735,87859.0,87847.0,0.05704]
[1766939522982,0.02421735,87858.0,87847.0,0.05704]
[1766939523183,0.02421735,87857.0,87847.0,0.05704]
[1766939523383,0.02421735,87856.0,87847.0,0.05704]
[1766939523584,0.02421735,87855.0,87847.0,0.05704]
[1766939523780,0.0113896,87861.0,87847.0,0.05704]
[1766939523981,0.02421789,87860.0,87847.0,0.05704]
[1766939524182,0.02421789,87859.0,87847.0,0.05704]
[1766939524388,0.02421789,87858.0,87847.0,0.05704]
[1766939524588,0.02421789,87857.0,87847.0,0.05704]
[1766939524889,0.02421789,87856.0,87847.0,0.05704]
[1766939525091,0.02421789,87855.0,87847.0,0.05704]
[1766939525287,0.0113896,87861.0,87847.0,0.05704]
[1766939525488,0.0242197,87860.0,87847.0,0.05704]
[1766939525688,0.0242197,87859.0,87847.0,0.05704]
[1766939525893,0.0242197,87858.0,87847.0,0.05704]
[1766939526088,0.0242197,87857.0,87847.0,0.05704]
[1766939526289,0.0113896,87861.0,87847.0,0.05704]
[1766939526290,0.01155993,87864.0,87847.0,0.05704]
[1766939526489,0.0113895,87861.0,87847.0,0.05704]
[1766939527500,0.01155993,87864.0,87847.0,0.05704]
[1766939529899,0.01155993,87864.0,87847.0,0.0684313]
[1766939530298,0.01155993,87864.0,87847.0,0.0984313]
[1766939530498,0.00017073,87864.0,87847.0,0.05704]
[1766939531911,0.0113899,87859.0,87847.0,0.05704]
[1766939536513,0.0113902,87857.0,87847.0,0.05704]
[1766939536711,0.0113902,87857.0,87846.0,0.05721073]
[1766939537811,0.00017073,87864.0,87846.0,0.05721073]
[1766939537812,0.0113897,87860.0,87846.0,0.05721073]
[1766939538210,0.01139,87858.0,87846.0,0.05721073]
[1766939538402,0.0113902,87856.0,87846.0,0.05721073]
[1766939538607,0.02411595,87855.0,87846.0,0.05721073]
[1766939538808,0.0113902,87856.0,87846.0,0.05721073]
[1766939539005,0.02411593,87855.0,87846.0,0.05721073]
[1766939539211,0.0113902,87856.0,87846.0,0.05721073]
[1766939539413,0.02411593,87855.0,87846.0,0.05721073]
[1766939539709,0.0113899,87859.0,87846.0,0.05721073]
[1766939540011,0.0113901,87857.0,87846.0,0.05721073]
[1766939540312,0.02411598,87856.0,87846.0,0.05721073]
[1766939540513,0.02411598,87855.0,87846.0,0.05721073]
[1766939540708,0.00017073,87864.0,87846.0,0.05721073]
[1766939540901,0.02411599,87863.0,87846.0,0.05721073]
[1766939541101,0.02411599,87862.0,87846.0,0.05721073]
[1766939541316,0.02411599,87861.0,87846.0,0.05721073]
[1766939541514,0.02411599,87860.0,87846.0,0.05721073]
[1766939541714,0.02411599,87859.0,87846.0,0.05721073]
[1766939542014,0.02411599,87858.0,87846.0,0.05721073]
[1766939542210,0.03550619,87857.0,87846.0,0.05721073]
[1766939542410,0.02411599,87856.0,87846.0,0.05721073]
[1766939542810,0.02411599,87856.0,87838.0,0.0113925]
[1766939543002,0.02411599,87856.0,87840.0,0.0113922]
[1766939543208,0.0113903,87855.0,87840.0,0.0413922]
[1766939543411,0.02411599,87854.0,87840.0,0.0413922]
[1766939543615,0.02411599,87853.0,87840.0,0.0413922]
[1766939543818,0.02411599,87852.0,87840.0,0.0413922]
[1766939544117,0.01139,87858.0,87840.0,0.0413922]
[1766939544313,0.02403076,87857.0,87840.0,0.0413922]
[1766939544511,0.02403076,87856.0,87842.0,0.0113919]
[1766939544711,0.02403076,87855.0,87842.0,0.0313919]
[1766939545010,0.0113906,87853.0,87843.0,0.05704]
[1766939545216,0.02403076,87852.0,87844.0,0.05704]
[1766939545515,0.0113903,87856.0,87844.0,0.05704]
[1766939545715,0.02403077,87855.0,87844.0,0.05704]
[1766939546015,0.02403077,87854.0,87844.0,0.05704]
[1766939546211,0.02403077,87853.0,87844.0,0.05704]
[1766939546411,0.02403077,87852.0,87844.0,0.05704]
[1766939546611,0.0113903,87856.0,87844.0,0.05704]
[1766939546915,0.02403081,87855.0,87844.0,0.05704]
[1766939547215,0.02403081,87854.0,87844.0,0.05704]
[1766939547514,0.02403081,87853.0,87844.0,0.05704]
[1766939547714,0.02403081,87852.0,87844.0,0.05704]
[1766939547914,0.0113899,87859.0,87844.0,0.05704]
[1766939548116,0.02403089,87858.0,87844.0,0.05704]
[1766939548306,0.03542099,87857.0,87844.0,0.05704]
[1766939548507,0.02403089,87856.0,87844.0,0.05704]
[1766939550818,0.02403089,87855.0,87844.0,0.05704]
[1766939551020,0.02403089,87854.0,87844.0,0.05704]
[1766939551209,0.02403089,87853.0,87844.0,0.05704]
[1766939551409,0.0113897,87860.0,87844.0,0.05704]
[1766939551620,0.02403104,87859.0,87844.0,0.05704]
[1766939551811,0.02403104,87858.0,87844.0,0.05704]
[1766939552010,0.02403104,87857.0,87844.0,0.05704]
[1766939552209,0.02403104,87856.0,87844.0,0.05704]
[1766939552410,0.02403104,87855.0,87844.0,0.05704]
[1766939552618,0.0113897,87860.0,87844.0,0.05704]
[1766939552818,0.02403109,87859.0,87844.0,0.05704]
[1766939553019,0.02403109,87858.0,87844.0,0.05704]
[1766939553319,0.02403109,87857.0,87844.0,0.05704]
[1766939553512,0.02403109,87856.0,87844.0,0.05704]
[1766939553713,0.02403109,87855.0,87844.0,0.05704]
[1766939554013,0.01139,87858.0,87844.0,0.05704]
[1766939554215,0.02403113,87857.0,87844.0,0.05704]
[1766939554414,0.02403113,87856.0,87844.0,0.05704]
[1766939554720,0.02403113,87855.0,87844.0,0.05704]
[1766939554920,0.01139,87858.0,87844.0,0.05704]
[1766939555122,0.02403118,87857.0,87844.0,0.05704]
[1766939555420,0.02403118,87856.0,87844.0,0.05704]
[1766939555623,0.02403118,87855.0,87844.0,0.05704]
[1766939555825,0.01139,87858.0,87844.0,0.05704]
[1766939556124,0.02403123,87857.0,87844.0,0.05704]
[1766939556324,0.02403123,87856.0,87844.0,0.05704]
[1766939556515,0.02403123,87855.0,87844.0,0.05704]
[1766939556716,0.01139,87858.0,87844.0,0.05704]
[1766939556915,0.02403124,87857.0,87844.0,0.05704]
[1766939557123,0.02403124,87856.0,87844.0,0.05704]
[1766939557322,0.02403124,87855.0,87844.0,0.05704]
[1766939557524,0.01139,87858.0,87844.0,0.05704]
[1766939557823,0.02403133,87857.0,87844.0,0.05704]
[1766939558017,0.02403133,87856.0,87844.0,0.05704]
[1766939558216,0.02403133,87855.0,87844.0,0.05704]
[1766939558416,0.01139,87858.0,87844.0,0.05704]
[1766939558619,0.02403146,87857.0,87844.0,0.05704]
[1766939558818,0.01139,87858.0,87844.0,0.05704]
[1766939558819,0.02403146,87856.0,87844.0,0.05704]
[1766939559023,0.02403146,87855.0,87844.0,0.05704]
[1766939559225,0.01139,87858.0,87844.0,0.05704]
[1766939559526,0.02403145,87857.0,87844.0,0.05704]
[1766939559721,0.02403145,87856.0,87844.0,0.05704]
[1766939559920,0.02403145,87855.0,87844.0,0.05704]
[1766939560123,0.0113896,87861.0,87844.0,0.05704]
[1766939560318,0.0240316,87860.0,87844.0,0.0684317]
[1766939560524,0.0240316,87859.0,87846.0,0.0113914]
[1766939560725,0.0240316,87858.0,87846.0,0.0113914]
[1766939561028,0.0240316,87857.0,87844.0,0.05704]
[1766939561221,0.0240316,87856.0,87844.0,0.0684317]
[1766939561414,0.0240316,87855.0,87844.0,0.0684317]
[1766939561624,0.0113894,87862.0,87844.0,0.0684317]
[1766939561828,0.02403207,87861.0,87844.0,0.0684317]
[1766939562014,0.02403207,87860.0,87844.0,0.0684317]
[1766939562219,0.02403207,87859.0,87844.0,0.0684317]
[1766939562420,0.02403207,87858.0,87844.0,0.0684317]
[1766939562627,0.02403207,87857.0,87844.0,0.0684317]
[1766939562830,0.02403207,87856.0,87844.0,0.0684317]
[1766939563128,0.02403207,87855.0,87844.0,0.0684317]
[1766939563428,0.0113894,87862.0,87844.0,0.0684317]
[1766939563616,0.02403229,87861.0,87844.0,0.0684317]
[1766939563816,0.02403229,87860.0,87844.0,0.0684317]
[1766939564020,0.02403229,87859.0,87844.0,0.0684317]
[1766939564217,0.02403229,87858.0,87844.0,0.0684317]
[1766939564523,0.02403229,87857.0,87844.0,0.0684317]
[1766939564723,0.02403229,87856.0,87844.0,0.0684317]
[1766939565030,0.02403229,87855.0,87844.0,0.0684317]
[1766939565232,0.0113894,87862.0,87844.0,0.0684317]
[1766939565530,0.02403245,87861.0,87844.0,0.0684317]
[1766939565731,0.02403245,87860.0,87844.0,0.0684317]
[1766939565932,0.02403245,87859.0,87844.0,0.0684317]
[1766939566132,0.02403245,87858.0,87844.0,0.0684317]
[1766939566334,0.02403245,87857.0,87844.0,0.0684317]
[1766939566533,0.02403245,87856.0,87844.0,0.0684317]
[1766939566735,0.02403245,87855.0,87844.0,0.0684317]
[1766939566933,0.0113894,87862.0,87844.0,0.0684317]
[1766939567136,0.02403252,87861.0,87844.0,0.0684317]
[1766939567432,0.02403252,87860.0,87844.0,0.0684317]
[1766939567633,0.02403252,87859.0,87844.0,0.0684317]
[1766939567826,0.02403252,87858.0,87844.0,0.05704]
[1766939568026,0.02403252,87857.0,87844.0,0.05704]
[1766939568227,0.02403252,87856.0,87844.0,0.05704]
[1766939568434,0.02403252,87855.0,87844.0,0.05704]
[1766939568737,0.0113897,87860.0,87844.0,0.05704]
[1766939568935,0.02403258,87859.0,87844.0,0.05704]
[1766939569136,0.02403258,87858.0,87844.0,0.05704]
[1766939569336,0.02403258,87857.0,87844.0,0.05704]
[1766939569537,0.02403258,87856.0,87844.0,0.05704]
[1766939569736,0.02403258,87855.0,87844.0,0.05704]
[1766939569928,0.0113897,87860.0,87844.0,0.05704]
[1766939570134,0.02403257,87859.0,87844.0,0.05704]
[1766939570334,0.02403257,87858.0,87844.0,0.05704]
[1766939570536,0.02403257,87857.0,87844.0,0.05704]
[1766939570838,0.02403257,87856.0,87844.0,0.05704]
[1766939571038,0.02403257,87855.0,87844.0,0.05704]
[1766939571234,0.0113897,87860.0,87844.0,0.05704]
[1766939571435,0.02403244,87859.0,87844.0,0.05704]
[1766939571735,0.02403244,87858.0,87844.0,0.05704]
[1766939571935,0.02403244,87857.0,87844.0,0.05704]
[1766939572138,0.02403244,87856.0,87844.0,0.05704]
[1766939572340,0.02403244,87855.0,87844.0,0.05704]
[1766939572532,0.0113897,87860.0,87844.0,0.05704]
[1766939572734,0.02403298,87859.0,87844.0,0.05704]
[1766939572935,0.02403298,87858.0,87844.0,0.05704]
[1766939573141,0.0113897,87860.0,87844.0,0.05704]
[1766939573142,0.02403298,87857.0,87844.0,0.05704]
[1766939573344,0.02403298,87856.0,87844.0,0.05704]
[1766939573531,0.02403298,87855.0,87844.0,0.05704]
[1766939573732,0.0113897,87860.0,87844.0,0.05704]
[1766939573932,0.02401115,87859.0,87844.0,0.05704]
[1766939574144,0.02401115,87858.0,87844.0,0.05704]
[1766939574337,0.02401115,87857.0,87844.0,0.05704]
[1766939574539,0.02401115,87856.0,87844.0,0.05704]
[1766939574741,0.02401115,87855.0,87844.0,0.05704]
[1766939575043,0.0113897,87860.0,87844.0,0.05704]
[1766939575241,0.02401101,87859.0,87844.0,0.05704]
[1766939575439,0.02401101,87858.0,87844.0,0.05704]
[1766939575639,0.02401101,87857.0,87844.0,0.05704]
[1766939575838,0.02401101,87856.0,87844.0,0.05704]
[1766939576036,0.02401101,87855.0,87844.0,0.05704]
[1766939576238,0.0113897,87860.0,87844.0,0.05704]
[1766939576444,0.02401101,87859.0,87844.0,0.05704]
[1766939576640,0.02401101,87858.0,87844.0,0.05704]
[1766939576837,0.02401101,87857.0,87844.0,0.05704]
[1766939577134,0.02401101,87856.0,87844.0,0.05704]
[1766939577336,0.0113897,87860.0,87844.0,0.05704]
[1766939577337,0.02401101,87855.0,87844.0,0.05704]
[1766939577537,0.0113897,87860.0,87844.0,0.05704]
[1766939577835,0.02401096,87859.0,87844.0,0.05704]
[1766939578037,0.02401096,87858.0,87844.0,0.05704]
[1766939578236,0.02401096,87857.0,87845.0,0.0113916]
[1766939578436,0.02401096,87856.0,87845.0,0.0113916]
[1766939578640,0.02401096,87855.0,87845.0,0.0113916]
[1766939578844,0.0113897,87860.0,87845.0,0.0113916]
[1766939579038,0.02401097,87859.0,87844.0,0.05704]
[1766939579244,0.02401097,87858.0,87846.0,0.0113914]
[1766939579436,0.02401097,87857.0,87846.0,0.0113914]
[1766939579640,0.02401097,87856.0,87848.0,0.0113912]
[1766939579944,0.02401097,87855.0,87845.0,0.0113915]
[1766939580138,0.0113894,87862.0,87845.0,0.0113915]
[1766939580436,0.02401099,87861.0,87845.0,0.0113915]
[1766939580638,0.02401099,87860.0,87845.0,0.0113915]
[1766939580836,0.02401099,87859.0,87845.0,0.0113915]
[1766939581036,0.02401099,87858.0,87845.0,0.0113915]
[1766939581237,0.02401099,87857.0,87845.0,0.0113915]
[1766939581438,0.02401099,87856.0,87847.0,0.0113913]
[1766939581643,0.02401099,87855.0,87847.0,0.0113913]
[1766939581844,0.02401099,87854.0,87847.0,0.0113913]
[1766939582047,0.02401099,87853.0,87847.0,0.0113913]
[1766939582346,0.02401099,87852.0,87847.0,0.0113913]
[1766939582548,0.00017073,87864.0,87847.0,0.0113913]
[1766939582749,0.02401105,87863.0,87847.0,0.0113913]
[1766939582946,0.02401105,87862.0,87847.0,0.0113913]
[1766939583147,0.02401105,87861.0,87847.0,0.0113913]
[1766939583350,0.02401105,87860.0,87847.0,0.0113913]
[1766939583649,0.02401105,87860.0,87844.0,0.05704]
[1766939583650,0.00017073,87864.0,87844.0,0.05704]
[1766939583946,0.00017073,87864.0,87849.0,0.011391]
[1766939584147,0.00017073,87864.0,87850.0,0.057]
[1766939584350,0.00017073,87864.0,87851.0,0.0113908]
[1766939585649,0.00017073,87864.0,87850.0,0.057]
[1766939586045,0.00017073,87864.0,87850.0,0.0683908]
[1766939588844,0.09684,87866.0,87850.0,0.0683908]
[1766939589250,0.09684,87866.0,87852.0,0.0113906]
[1766939595450,0.09684,87866.0,87854.0,0.0113904]
[1766939595655,0.00017073,87868.0,87854.0,0.03]
[1766939595656,0.02389642,87865.0,87854.0,0.03]
[1766939595854,0.00017073,87868.0,87854.0,0.03]
[1766939596545,0.00017073,87868.0,87857.0,0.0113899]
[1766939596745,0.00017073,87868.0,87854.0,0.03]
[1766939596746,0.00017073,87868.0,87854.0,0.0113904]
[1766939596945,0.00017073,87868.0,87856.0,0.0113901]
[1766939597152,0.00017073,87868.0,87856.0,0.0413901]
[1766939597350,0.00017073,87868.0,87856.0,0.0113901]
[1766939597651,0.00017073,87868.0,87857.0,0.057]
[1766939597850,0.01155943,87868.0,87857.0,0.057]
[1766939604558,0.00017073,87868.0,87857.0,0.057]
[1766939616764,0.057,87873.0,87859.0,0.0113897]
[1766939617462,0.057,87882.0,87860.0,0.0113896]
[1766939617649,0.0113879,87874.0,87862.0,0.00017073]
[1766939617857,0.0113879,87874.0,87863.0,0.057]
[1766939618964,0.057,87882.0,87863.0,0.057]
[1766939620165,0.011388,87873.0,87863.0,0.057]
[1766939620362,0.011388,87873.0,87862.0,0.00017073]
[1766939620563,0.011388,87873.0,87863.0,0.057]
[1766939621781,0.0113883,87871.0,87863.0,0.057]
[1766939622758,0.0113879,87874.0,87863.0,0.057]
[1766939623666,0.057,87882.0,87863.0,0.057]
[1766939623667,0.0113871,87881.0,87863.0,0.057]
[1766939624867,0.011388,87873.0,87863.0,0.057]
[1766939630164,0.0113884,87870.0,87863.0,0.057]
[1766939630772,0.0113891,87865.0,87862.0,0.05700003]
[1766939631072,0.0113887,87868.0,87862.0,0.05700003]
[1766939631570,0.0113887,87868.0,87862.0,3e-08]
[1766939634267,0.0053887,87868.0,87862.0,3e-08]
[1766939634474,0.0113882,87872.0,87862.0,3e-08]
[1766939635872,0.0113885,87870.0,87862.0,3e-08]
[1766939642672,0.0113887,87868.0,87862.0,3e-08]
[1766939651087,0.0113883,87871.0,87862.0,3e-08]
[1766939653177,0.0001707,87874.0,87862.0,3e-08]
[1766939654184,0.0113886,87869.0,87862.0,3e-08]
[1766939654387,0.0001707,87874.0,87862.0,3e-08]
[1766939654582,0.0113885,87870.0,87862.0,3e-08]
[1766939656384,0.0113887,87868.0,87862.0,3e-08]
[1766939661386,0.0001707,87874.0,87862.0,3e-08]
[1766939662991,0.0113889,87867.0,87862.0,3e-08]
[1766939664691,0.0113891,87865.0,87862.0,3e-08]
[1766939668699,0.0113891,87865.0,87859.0,3e-08]
[1766939671297,0.0113887,87868.0,87859.0,3e-08]
[1766939672697,0.0113889,87866.0,87859.0,3e-08]
[1766939673798,0.06133229,87874.0,87859.0,3e-08]
[1766939673999,0.011389,87866.0,87859.0,3e-08]
[1766939679798,0.06133229,87874.0,87859.0,3e-08]
[1766939679995,0.0113893,87864.0,87859.0,3e-08]
[1766939691218,0.0113888,87867.0,87859.0,3e-08]